fUSD/lending_fUSD_20240116
["ID","MTS","AMOUNT","RATE_DAILY","PERIOD"]
[311789459,1705390252513,-510.3,0.00022417,2]
[311789460,1705390252523,-300.0,0.00022417,2]
[311789461,1705390252533,-500.0,0.00022417,2]
[311789462,1705390252543,-500.0,0.00022417,2]
[311789463,1705390252553,-476.10209459,0.00022417,2]
[311789464,1705390252563,-500.0,0.00022417,2]
[311789465,1705390252573,-500.0,0.00022417,2]
[311789466,1705390252583,-605.08,0.00022417,2]
[311789467,1705390252592,-500.0,0.00022417,2]
[311789468,1705390252601,-500.0,0.00022417,2]
[311789469,1705390252611,-500.0,0.00022417,2]
[311789470,1705390252621,-505.42,0.00022417,2]
[311789471,1705390252632,-500.0,0.00022417,2]
[311789472,1705390252642,-500.0,0.00022417,2]
[311789473,1705390252653,-500.0,0.00022417,2]
[311789474,1705390252663,-1472.27,0.00022417,2]
[311789475,1705390252672,-500.0,0.00022417,2]
[311789476,1705390252682,-500.0,0.00022417,2]
[311789477,1705390252691,-500.0,0.00022417,2]
[311789478,1705390252700,-500.0,0.00022417,2]
[311789479,1705390252710,-500.0,0.00022417,2]
[311789480,1705390252720,-500.0,0.00022417,2]
[311789481,1705390252730,-500.0,0.00022417,2]
[311789482,1705390252739,-500.0,0.00022417,2]
[311789483,1705390252749,-500.0,0.00022417,2]
[311789484,1705390252759,-500.0,0.00022417,2]
[311789485,1705390252769,-917.38,0.00022417,2]
[311789486,1705390252781,-500.0,0.00022417,2]
[311789487,1705390252793,-500.0,0.00022417,2]
[311789488,1705390252803,-500.0,0.00022417,2]
[311789489,1705390252813,-549.25,0.00022417,2]
[311789490,1705390252824,-500.0,0.00022417,2]
[311789491,1705390252835,-757.08,0.00022417,2]
[311789492,1705390252845,-873.65,0.00022417,2]
[311789493,1705390252854,-500.0,0.00022417,2]
[311789494,1705390252864,-2934.48,0.00022417,2]
[311789495,1705390252874,-590.58,0.00022417,2]
[311789496,1705390252883,-305.67875758,0.00022417,2]
[311789497,1705390252892,-500.0,0.00022417,2]
[311789498,1705390252902,-517.67,0.00022417,2]
[311789499,1705390252911,-2043.2,0.00022417,2]
[311789500,1705390252920,-500.0,0.00022417,2]
[311789501,1705390252930,-752.07,0.00022417,2]
[311789502,1705390252942,-364.10149841,0.00022417,2]
[311789503,1705390252951,-670.11,0.00022417,2]
[311789504,1705390252960,-500.0,0.00022417,2]
[311789505,1705390252970,-500.0,0.00022417,2]
[311789506,1705390252979,-558.42,0.00022417,2]
[311789507,1705390252988,-500.0,0.00022417,2]
[311789508,1705390252998,-500.0,0.00022417,2]
[311789509,1705390253007,-500.0,0.00022417,2]
[311789510,1705390253019,-500.0,0.00022417,2]
[311789511,1705390253030,-500.0,0.00022417,2]
[311789512,1705390253040,-500.0,0.00022417,2]
[311789513,1705390253050,-500.0,0.00022417,2]
[311789514,1705390253060,-764.37,0.00022417,2]
[311789515,1705390253070,-500.0,0.00022417,2]
[311789516,1705390253080,-500.0,0.00022417,2]
[311789517,1705390253091,-500.0,0.00022417,2]
[311789518,1705390253101,-898.0,0.00022417,2]
[311789519,1705390253110,-871.22,0.00022417,2]
[311789520,1705390253120,-500.0,0.00022417,2]
[311789521,1705390253131,-679.57,0.00022417,2]
[311789522,1705390253140,-525.38,0.00022417,2]
[311789523,1705390253150,-695.59,0.00022417,2]
[311789524,1705390253159,-500.0,0.00022417,2]
[311789525,1705390253169,-640.94,0.00022417,2]
[311789526,1705390253179,-500.0,0.00022417,2]
[311789527,1705390253188,-500.0,0.00022417,2]
[311789528,1705390253199,-551.27,0.00022417,2]
[311789529,1705390253209,-500.0,0.00022417,2]
[311789530,1705390253219,-500.0,0.00022417,2]
[311789531,1705390253231,-500.0,0.00022417,2]
[311789532,1705390253240,-500.0,0.00022417,2]
[311789533,1705390253249,-500.0,0.00022417,2]
[311789534,1705390253258,-630.84,0.00022417,2]
[311789535,1705390253268,-500.0,0.00022417,2]
[311789536,1705390253278,-500.0,0.00022417,2]
[311789537,1705390253287,-500.0,0.00022417,2]
[311789538,1705390253297,-734.76,0.00022417,2]
[311789539,1705390253308,-603.9,0.00022417,2]
[311789540,1705390253319,-500.0,0.00022417,2]
[311789541,1705390253328,-500.0,0.00022417,2]
[311789542,1705390253340,-733.97,0.00022417,2]
[311789543,1705390253350,-500.0,0.00022417,2]
[311789544,1705390253360,-500.0,0.00022417,2]
[311789545,1705390253369,-500.0,0.00022417,2]
[311789546,1705390253379,-500.0,0.00022417,2]
[311789547,1705390253389,-628.83127586,0.00022417,2]
[311789548,1705390253399,-527.33,0.00022417,2]
[311789549,1705390253409,-500.0,0.00022417,2]
[311789550,1705390253419,-500.0,0.00022417,2]
[311789551,1705390253430,-958.02,0.00022417,2]
[311789552,1705390253440,-500.0,0.00022417,2]
[311789553,1705390253449,-500.0,0.00022417,2]
[311789554,1705390253459,-693.04,0.00022417,2]
[311789555,1705390253468,-975.54,0.00022417,2]
[311789556,1705390253478,-500.0,0.00022417,2]
[311789557,1705390253488,-11384.22451292,0.00022443,2]
[311789558,1705390253498,-155.33,0.00022497,2]
[311789559,1705390253507,-11384.22451292,0.000225,2]
[311789560,1705390253518,-12294.16339703,0.000225,2]
[311789561,1705390253530,-1000.0,0.000225,2]
[311789562,1705390253539,-447.0,0.00022509,7]
[311789563,1705390253548,-284.0,0.00022509,7]
[311789564,1705390253558,-341.0,0.00022509,7]
[311789565,1705390253567,-150.0,0.00022513,2]
[311789566,1705390253576,-158.68,0.00022521,2]
[311789567,1705390253585,-309.90412142,0.0002255,2]
[311789568,1705390253595,-11384.22451292,0.00022557,2]
[311789569,1705390253605,-193.27149117,0.00022586,6]
[311789570,1705390253615,-155.33,0.00022609,2]
[311789571,1705390253626,-152.199543,0.00022614,7]
[311789572,1705390253636,-151.0,0.00022614,7]
[311789573,1705390253646,-151.0,0.00022614,7]
[311789574,1705390253656,-215.167336,0.00022614,2]
[311789575,1705390253665,-215.167336,0.00022614,2]
[311789576,1705390253675,-151.0,0.00022614,7]
[311789577,1705390253685,-151.0,0.00022614,7]
[311789578,1705390253694,-151.0,0.00022614,7]
[311789579,1705390253704,-151.0,0.00022614,7]
[311789580,1705390253713,-151.0,0.00022614,7]
[311789581,1705390253723,-151.0,0.00022614,7]
[311789582,1705390253733,-157.441636,0.00022614,7]
[311789583,1705390253743,-200.194063,0.00022614,7]
[311789584,1705390253753,-151.0,0.00022614,7]
[311789585,1705390253762,-151.0,0.00022614,7]
[311789586,1705390253772,-151.0,0.00022614,7]
[311789587,1705390253781,-151.0,0.00022614,7]
[311789588,1705390253791,-151.0,0.00022614,7]
[311789589,1705390253801,-151.0,0.00022614,7]
[311789590,1705390253810,-257.733119,0.00022614,7]
[311789591,1705390253819,-151.0,0.00022614,7]
[311789592,1705390253829,-11384.22451292,0.00022614,2]
[311789593,1705390253838,-561.44,0.00022642,2]
[311789594,1705390253848,-500.0,0.00022642,2]
[311789595,1705390253857,-500.0,0.00022642,2]
[311789596,1705390253866,-500.0,0.00022642,2]
[311789597,1705390253875,-179.55106228,0.00022642,2]
[311789598,1705390253884,-512.15,0.00022642,2]
[311789599,1705390253895,-500.0,0.00022642,2]
[311789600,1705390253904,-1107.22,0.00022642,2]
[311789601,1705390253913,-557.52,0.00022642,2]
[311789602,1705390253923,-500.0,0.00022642,2]
[311789603,1705390253933,-2726.45,0.00022643,2]
[311789604,1705390253943,-16691.46,0.00022643,2]
[311789605,1705390253952,-1163.44,0.00022643,2]
[311789606,1705390253961,-651.11,0.00022643,2]
[311789607,1705390253971,-733.8,0.00022643,2]
[311789608,1705390253980,-1259.35,0.00022643,2]
[311789609,1705390253990,-223.02768248,0.00022643,2]
[311789610,1705390254000,-936.66,0.00022643,2]
[311789611,1705390254010,-1043.79,0.00022643,2]
[311789612,1705390254021,-762.91,0.00022643,2]
[311789613,1705390254113,-500.0,0.00022643,2]
[311789614,1705390254123,-500.0,0.00022643,2]
[311789615,1705390254134,-817.17,0.00022643,2]
[311789616,1705390254143,-507.89,0.00022643,2]
[311789617,1705390254153,-1974.23,0.00022643,2]
[311789618,1705390254162,-1135.85,0.00022643,2]
[311789619,1705390254171,-730.95,0.00022643,2]
[311789620,1705390254180,-500.0,0.00022643,2]
[311789621,1705390254190,-500.0,0.00022643,2]
[311789622,1705390254199,-908.34,0.00022643,2]
[311789623,1705390254215,-9440.98,0.00022643,2]
[311789624,1705390254224,-893.3,0.00022643,2]
[311789625,1705390254233,-864.16,0.00022643,2]
[311789626,1705390254243,-711.52,0.00022643,2]
[311789627,1705390254253,-2741.52,0.00022643,2]
[311789628,1705390254262,-1009.47,0.00022643,2]
[311789629,1705390254272,-892.82,0.00022643,2]
[311789630,1705390254283,-1257.34,0.00022643,2]
[311789631,1705390254293,-823.91,0.00022643,2]
[311789632,1705390254303,-1092.22,0.00022643,2]
[311789633,1705390254313,-500.0,0.00022643,2]
[311789634,1705390254323,-1116.1,0.00022643,2]
[311789635,1705390254333,-933.58,0.00022643,2]
[311789636,1705390254342,-784.3,0.00022643,2]
[311789637,1705390254351,-1476.37,0.00022643,2]
[311789638,1705390254361,-685.72,0.00022643,2]
[311789639,1705390254370,-2862.03,0.00022643,2]
[311789640,1705390254380,-541.94,0.00022643,2]
[311789641,1705390254389,-584.7,0.00022643,2]
[311789642,1705390254399,-790.59,0.00022643,2]
[311789643,1705390254408,-802.3,0.00022643,2]
[311789644,1705390254417,-1348.93,0.00022643,2]
[311789645,1705390254427,-500.0,0.00022643,2]
[311789646,1705390254437,-500.0,0.00022644,5]
[311789647,1705390254447,-590.42,0.00022644,2]
[311789648,1705390254457,-2999.63,0.00022644,2]
[311789649,1705390254466,-6105.3,0.00022644,2]
[311789650,1705390254476,-2234.66,0.00022644,2]
[311789651,1705390254486,-794.81,0.00022644,2]
[311789652,1705390254495,-696.49,0.00022644,2]
[311789653,1705390254505,-5937.41,0.00022644,2]
[311789654,1705390254515,-2047.36,0.00022644,2]
[311789655,1705390254524,-500.0,0.00022644,2]
[311789656,1705390254533,-742.91,0.00022644,2]
[311789657,1705390254542,-1831.91,0.00022644,2]
[311789658,1705390254552,-1652.81,0.00022644,2]
[311789659,1705390254561,-1187.32,0.00022644,2]
[311789660,1705390254571,-3731.4,0.00022644,2]
[311789661,1705390254580,-1068.78,0.00022644,2]
[311789662,1705390254589,-2206.96,0.00022644,2]
[311789663,1705390254598,-500.0,0.00022644,2]
[311789664,1705390254608,-4493.98,0.00022644,2]
[311789665,1705390254618,-500.0,0.00022644,2]
[311789666,1705390254627,-1001.31,0.00022644,2]
[311789667,1705390254637,-1700.36,0.00022644,2]
[311789668,1705390254646,-835.7,0.00022644,2]
[311789669,1705390254656,-1105.04,0.00022644,2]
[311789670,1705390254665,-811.59,0.00022644,2]
[311789671,1705390254674,-500.0,0.00022644,2]
[311789672,1705390254684,-745.6,0.00022644,2]
[311789673,1705390254693,-885.13,0.00022644,2]
[311789674,1705390254702,-1066.16,0.00022644,2]
[311789675,1705390254712,-2172.43,0.00022644,2]
[311789676,1705390254721,-2642.86,0.00022644,2]
[311789677,1705390254732,-365.10102729,0.00022644,2]
[311789678,1705390254741,-1299.49027903,0.00022644,2]
[311789679,1705390255282,-371.70972097,0.00022644,2]
[311789680,1705390255293,-938.21,0.00022644,2]
[311789681,1705390255302,-1231.09,0.00022644,2]
[311789682,1705390255312,-718.01,0.00022644,2]
[311789683,1705390255321,-773.08,0.00022644,2]
[311789684,1705390255331,-816.68,0.00022644,2]
[311789685,1705390255340,-1388.71,0.00022644,2]
[311789686,1705390255350,-500.0,0.00022644,2]
[311789687,1705390255359,-2646.62,0.00022644,2]
[311789688,1705390255369,-1116.43,0.00022644,2]
[311789689,1705390255379,-733.39,0.00022644,2]
[311789690,1705390255389,-500.0,0.00022644,2]
[311789691,1705390255398,-1777.04,0.00022644,2]
[311789692,1705390255407,-1900.24,0.00022644,2]
[311789693,1705390255416,-500.0,0.00022644,2]
[311789694,1705390255426,-3841.16,0.00022644,2]
[311789695,1705390255435,-5479.66,0.00022644,2]
[311789696,1705390255445,-1031.4,0.00022644,2]
[311789697,1705390255454,-5881.1,0.00022644,2]
[311789698,1705390255464,-500.0,0.00022644,2]
[311789699,1705390255473,-922.08,0.00022644,2]
[311789700,1705390255483,-1202.95567145,0.00022645,2]
[311789701,1705390255492,-940.13112153,0.00022645,2]
[311789702,1705390255501,-2618.74812066,0.00022645,2]
[311789703,1705390255510,-500.0,0.00022645,2]
[311789704,1705390255520,-500.0,0.00022645,2]
[311789705,1705390255529,-500.0,0.00022645,2]
[311789706,1705390255538,-677.61,0.00022645,2]
[311789707,1705390255548,-500.0,0.00022645,2]
[311789708,1705390255557,-574.96,0.00022645,2]
[311789709,1705390255566,-579.89,0.00022645,2]
[311789710,1705390255575,-500.0,0.00022645,2]
[311789711,1705390255584,-513.19,0.00022645,2]
[311789712,1705390255594,-406.28727104,0.00022645,2]
[311789713,1705390255603,-500.0,0.00022645,2]
[311789714,1705390255613,-500.0,0.00022645,2]
[311789715,1705390255622,-500.0,0.00022645,2]
[311789716,1705390255632,-500.0,0.00022645,2]
[311789717,1705390255641,-574.31,0.00022645,2]
[311789718,1705390255651,-500.0,0.00022645,2]
[311789719,1705390255660,-500.0,0.00022645,2]
[311789720,1705390255669,-500.0,0.00022645,2]
[311789721,1705390255678,-500.0,0.00022645,2]
[311789722,1705390255687,-500.0,0.00022645,2]
[311789723,1705390255697,-500.0,0.00022645,2]
[311789724,1705390255706,-1037.93,0.00022645,2]
[311789725,1705390255715,-585.2,0.00022645,2]
[311789726,1705390255724,-500.0,0.00022645,2]
[311789727,1705390255744,-500.0,0.00022645,2]
[311789728,1705390255754,-500.0,0.00022645,2]
[311789729,1705390255765,-500.0,0.00022645,2]
[311789730,1705390255774,-529.12,0.00022645,2]
[311789731,1705390255783,-500.0,0.00022645,2]
[311789732,1705390255794,-500.0,0.00022645,2]
[311789733,1705390255806,-500.17,0.00022645,2]
[311789734,1705390255815,-500.0,0.00022645,2]
[311789735,1705390255825,-500.0,0.00022645,2]
[311789736,1705390255835,-500.0,0.00022645,2]
[311789737,1705390255845,-500.0,0.00022645,2]
[311789738,1705390255854,-500.0,0.00022645,2]
[311789739,1705390255864,-500.0,0.00022645,2]
[311789740,1705390255873,-500.0,0.00022645,2]
[311789741,1705390255883,-500.0,0.00022645,2]
[311789742,1705390255892,-500.0,0.00022645,2]
[311789743,1705390255901,-500.0,0.00022645,2]
[311789744,1705390255911,-568.14,0.00022645,2]
[311789745,1705390255920,-500.0,0.00022645,2]
[311789746,1705390255930,-936.62,0.00022645,2]
[311789747,1705390255939,-500.0,0.00022645,2]
[311789748,1705390255949,-500.0,0.00022645,2]
[311789749,1705390255958,-500.0,0.00022645,2]
[311789750,1705390255967,-530.75,0.00022645,2]
[311789751,1705390255976,-500.0,0.00022645,2]
[311789752,1705390255985,-500.0,0.00022645,2]
[311789753,1705390255994,-500.0,0.00022645,2]
[311789754,1705390256004,-500.0,0.00022645,2]
[311789755,1705390256013,-806.26,0.00022645,2]
[311789756,1705390256024,-500.0,0.00022645,2]
[311789757,1705390256033,-500.0,0.00022645,2]
[311789758,1705390256041,-500.0,0.00022645,2]
[311789759,1705390256051,-525.21,0.00022645,2]
[311789760,1705390256060,-500.0,0.00022645,2]
[311789761,1705390256070,-464.96829859,0.00022645,2]
[311789762,1705390256080,-500.0,0.00022645,2]
[311789763,1705390256091,-500.0,0.00022645,2]
[311789764,1705390256102,-500.0,0.00022645,2]
[311789765,1705390256111,-150.0,0.00022645,2]
[311789766,1705390256122,-500.0,0.00022645,2]
[311789767,1705390256131,-500.0,0.00022645,2]
[311789768,1705390256142,-500.0,0.00022645,2]
[311789769,1705390256152,-500.0,0.00022645,2]
[311789770,1705390256163,-500.0,0.00022645,2]
[311789771,1705390256171,-518.33,0.00022645,2]
[311789772,1705390256181,-500.0,0.00022645,2]
[311789773,1705390256191,-633.4,0.00022645,2]
[311789774,1705390256200,-500.0,0.00022645,2]
[311789775,1705390256213,-4134.43,0.00022645,2]
[311789776,1705390256222,-678.72,0.00022645,2]
[311789777,1705390256231,-621.85,0.00022645,2]
[311789778,1705390256240,-1476.04,0.00022645,2]
[311789779,1705390256250,-500.0,0.00022645,2]
[311789780,1705390256260,-1386.62,0.00022645,2]
[311789781,1705390256270,-500.0,0.00022645,2]
[311789782,1705390256279,-500.0,0.00022645,2]
[311789783,1705390256290,-500.0,0.00022645,2]
[311789784,1705390256300,-841.77,0.00022645,2]
[311789785,1705390256310,-500.0,0.00022645,2]
[311789786,1705390256320,-1100.8,0.00022645,2]
[311789787,1705390256330,-500.0,0.00022645,2]
[311789788,1705390256341,-500.0,0.00022645,2]
[311789789,1705390256351,-589.93,0.00022645,2]
[311789790,1705390256363,-700.19,0.00022645,2]
[311789791,1705390256373,-500.0,0.00022645,2]
[311789792,1705390256384,-641.32,0.00022645,2]
[311789793,1705390256394,-627.4,0.00022645,2]
[311789794,1705390256403,-1827.95,0.00022645,2]
[311789795,1705390256412,-500.0,0.00022645,2]
[311789796,1705390256422,-500.0,0.00022645,2]
[311789797,1705390256431,-2481.46,0.00022645,2]
[311789798,1705390256441,-500.0,0.00022645,2]
[311789799,1705390256451,-764.53,0.00022645,2]
[311789800,1705390256460,-500.0,0.00022645,2]
[311789801,1705390256470,-1053.92,0.00022645,2]
[311789802,1705390256479,-500.0,0.00022645,2]
[311789803,1705390256488,-2487.51,0.00022645,2]
[311789804,1705390256498,-500.0,0.00022645,2]
[311789805,1705390256507,-500.0,0.00022645,2]
[311789806,1705390256517,-500.0,0.00022645,2]
[311789807,1705390256526,-2454.61,0.00022645,2]
[311789808,1705390256537,-500.0,0.00022645,2]
[311789809,1705390256546,-672.93,0.00022645,2]
[311789810,1705390256560,-508.91,0.00022645,2]
[311789811,1705390256570,-563.88,0.00022645,2]
[311789812,1705390256579,-1551.22,0.00022645,2]
[311789813,1705390256588,-500.0,0.00022645,2]
[311789814,1705390256598,-555.5,0.00022645,2]
[311789815,1705390256607,-1008.43,0.00022645,2]
[311789816,1705390256617,-500.0,0.00022645,2]
[311789817,1705390256626,-979.23672934,0.00022645,2]
[311789818,1705390256642,-47.54327066,0.00022645,2]
[311789819,1705390256651,-682.93,0.00022645,2]
[311789820,1705390256660,-500.0,0.00022645,2]
[311789821,1705390256670,-2773.7,0.00022645,2]
[311789822,1705390256679,-711.67,0.00022645,2]
[311789823,1705390256688,-500.0,0.00022645,2]
[311789824,1705390256698,-500.0,0.00022645,2]
[311789825,1705390256707,-602.38,0.00022645,2]
[311789826,1705390256717,-1281.14,0.00022645,2]
[311789827,1705390256726,-500.0,0.00022645,2]
[311789828,1705390256735,-500.0,0.00022645,2]
[311789829,1705390256745,-540.07,0.00022645,2]
[311789830,1705390256755,-798.29,0.00022645,2]
[311789831,1705390256764,-527.4,0.00022645,2]
[311789832,1705390256774,-500.0,0.00022646,2]
[311789833,1705390256784,-396.99608196,0.00022646,2]
[311789834,1705390256795,-500.0,0.00022646,2]
[311789835,1705390256805,-500.0,0.00022646,2]
[311789836,1705390256816,-500.0,0.00022646,2]
[311789837,1705390256826,-500.0,0.00022646,2]
[311789838,1705390256836,-500.0,0.00022646,2]
[311789839,1705390256846,-500.0,0.00022646,2]
[311789840,1705390256856,-500.0,0.00022646,2]
[311789841,1705390256867,-571.02,0.00022646,2]
[311789842,1705390256878,-500.0,0.00022646,2]
[311789843,1705390256887,-500.0,0.00022646,2]
[311789844,1705390256897,-500.0,0.00022646,2]
[311789845,1705390256906,-706.78,0.00022646,2]
[311789846,1705390256915,-500.0,0.00022646,2]
[311789847,1705390256926,-500.0,0.00022646,2]
[311789848,1705390256935,-500.0,0.00022646,2]
[311789849,1705390256945,-500.0,0.00022646,2]
[311789850,1705390256955,-500.0,0.00022646,2]
[311789851,1705390256965,-500.0,0.00022646,2]
[311789852,1705390256976,-500.0,0.00022646,2]
[311789853,1705390256987,-500.0,0.00022646,2]
[311789854,1705390256998,-500.0,0.00022646,2]
[311789855,1705390257008,-500.0,0.00022646,2]
[311789856,1705390257018,-500.0,0.00022646,2]
[311789857,1705390257029,-500.0,0.00022646,2]
[311789858,1705390257038,-500.0,0.00022646,2]
[311789859,1705390257049,-500.0,0.00022646,2]
[311789860,1705390257058,-500.0,0.00022646,2]
[311789861,1705390257067,-500.0,0.00022646,2]
[311789862,1705390257076,-500.0,0.00022646,2]
[311789863,1705390257086,-500.0,0.00022646,2]
[311789864,1705390257095,-439.96820781,0.00022646,2]
[311789865,1705390257104,-500.0,0.00022646,2]
[311789866,1705390257113,-500.0,0.00022646,2]
[311789867,1705390257122,-500.0,0.00022646,2]
[311789868,1705390257132,-500.0,0.00022646,2]
[311789869,1705390257141,-500.0,0.00022646,2]
[311789870,1705390257150,-500.0,0.00022646,2]
[311789871,1705390257160,-500.0,0.00022646,2]
[311789872,1705390257169,-893.58,0.00022646,2]
[311789873,1705390257178,-500.0,0.00022646,2]
[311789874,1705390257188,-500.0,0.00022646,2]
[311789875,1705390257198,-500.0,0.00022646,2]
[311789876,1705390257207,-500.0,0.00022646,2]
[311789877,1705390257221,-500.0,0.00022646,2]
[311789878,1705390257232,-500.0,0.00022646,2]
[311789879,1705390257241,-500.0,0.00022646,2]
[311789880,1705390257253,-500.0,0.00022646,2]
[311789881,1705390257263,-500.0,0.00022646,2]
[311789882,1705390257275,-500.0,0.00022646,2]
[311789883,1705390257284,-500.0,0.00022646,2]
[311789884,1705390257294,-500.0,0.00022646,2]
[311789885,1705390257303,-196.11853741,0.00022646,2]
[311789886,1705390257313,-500.0,0.00022646,2]
[311789887,1705390257324,-500.0,0.00022646,2]
[311789888,1705390257334,-500.0,0.00022646,2]
[311789889,1705390257344,-500.0,0.00022646,2]
[311789890,1705390257354,-500.0,0.00022646,2]
[311789891,1705390257364,-500.0,0.00022646,2]
[311789892,1705390257375,-500.0,0.00022646,2]
[311789893,1705390257386,-786.73,0.00022646,2]
[311789894,1705390257396,-536.64,0.00022646,2]
[311789895,1705390257405,-447.14469265,0.00022646,2]
[311789896,1705390257415,-500.0,0.00022646,2]
[311789897,1705390257424,-500.0,0.00022646,2]
[311789898,1705390257435,-778.49,0.00022646,2]
[311789899,1705390257445,-500.0,0.00022646,2]
[311789900,1705390257455,-500.0,0.00022646,2]
[311789901,1705390257464,-500.0,0.00022646,2]
[311789902,1705390257474,-500.0,0.00022646,2]
[311789903,1705390257483,-625.37,0.00022646,2]
[311789904,1705390257492,-500.0,0.00022646,2]
[311789905,1705390257502,-500.0,0.00022646,2]
[311789906,1705390257511,-500.0,0.00022646,2]
[311789907,1705390257521,-645.71,0.00022646,2]
[311789908,1705390257530,-500.0,0.00022646,2]
[311789909,1705390257539,-500.0,0.00022646,2]
[311789910,1705390257549,-500.0,0.00022646,2]
[311789911,1705390257558,-1174.73,0.00022646,2]
[311789912,1705390257567,-500.0,0.00022646,2]
[311789913,1705390257577,-500.0,0.00022646,2]
[311789914,1705390257586,-500.0,0.00022646,2]
[311789915,1705390257596,-500.0,0.00022646,2]
[311789916,1705390257605,-500.0,0.00022646,2]
[311789917,1705390257614,-500.0,0.00022646,2]
[311789918,1705390257624,-500.0,0.00022646,2]
[311789919,1705390257633,-500.0,0.00022646,2]
[311789920,1705390257643,-515.88,0.00022646,2]
[311789921,1705390257652,-1065.25,0.00022646,2]
[311789922,1705390257661,-500.0,0.00022646,2]
[311789923,1705390257670,-500.0,0.00022646,2]
[311789924,1705390257680,-500.0,0.00022646,2]
[311789925,1705390257690,-555.3,0.00022646,2]
[311789926,1705390257699,-500.0,0.00022646,2]
[311789927,1705390257708,-500.0,0.00022646,2]
[311789928,1705390257717,-659.15,0.00022646,2]
[311789929,1705390257726,-500.0,0.00022646,2]
[311789930,1705390257735,-543.75,0.00022646,2]
[311789931,1705390257744,-500.0,0.00022646,2]
[311789932,1705390257754,-500.0,0.00022646,2]
[311789933,1705390257764,-939.73,0.00022646,2]
[311789934,1705390257773,-500.0,0.00022646,2]
[311789935,1705390257783,-587.32319001,0.00022646,2]
[311789936,1705390257792,-500.0,0.00022646,2]
[311789937,1705390258011,-500.0,0.00022646,2]
[311789938,1705390258024,-707.91,0.00022646,2]
[311789939,1705390258034,-513.01,0.00022646,2]
[311789940,1705390258044,-500.0,0.00022646,2]
[311789941,1705390258053,-500.0,0.00022646,2]
[311789942,1705390258064,-500.0,0.00022646,2]
[311789943,1705390258073,-500.0,0.00022646,2]
[311789944,1705390258083,-500.0,0.00022646,2]
[311789945,1705390258096,-500.0,0.00022646,2]
[311789946,1705390258106,-500.0,0.00022646,2]
[311789947,1705390258118,-500.0,0.00022646,2]
[311789948,1705390258127,-537.88,0.00022646,2]
[311789949,1705390258137,-500.0,0.00022646,2]
[311789950,1705390258147,-607.86,0.00022646,2]
[311789951,1705390258157,-500.0,0.00022646,2]
[311789952,1705390258166,-500.0,0.00022646,2]
[311789953,1705390258175,-500.0,0.00022646,2]
[311789954,1705390258185,-2072.82,0.00022646,2]
[311789955,1705390258194,-500.0,0.00022646,2]
[311789956,1705390258205,-500.0,0.00022646,2]
[311789957,1705390258218,-591.14,0.00022646,2]
[311789958,1705390258228,-500.0,0.00022646,2]